bitfinex/quotes_ETHUSD_20240729
["timestamp","ask_amount","ask_price","bid_price","bid_amount"]
[1722274370575,0.621289,3310.3,3309.1,0.06043261]
[1722274370758,3.02106,3310.1,3308.8,0.3029]
[1722274370979,3.02124,3309.9,3308.8,0.3029]
[1722274371199,3.02119,3310.0,3308.8,0.3029]
[1722274371503,3.02125,3309.9,3308.8,0.3029]
[1722274371717,3.02134,3309.8,3308.8,0.63319]
[1722274372275,3.02115,3310.0,3308.8,0.63319]
[1722274372492,3.192,3310.3,3308.9,0.3029]
[1722274372790,3.192,3310.3,3309.0,0.06043458]
[1722274372791,3.02115,3310.0,3309.0,0.06043458]
[1722274372993,3.323265,3310.0,3309.0,0.06043458]
[1722274373190,3.323265,3310.0,3308.8,0.33029]
[1722274373191,3.02125,3309.9,3308.8,0.33029]
[1722274373808,3.02125,3309.9,3308.5,2.2929]
[1722274373809,3.02124,3309.9,3308.5,2.2929]
[1722274374018,3.02142,3309.7,3308.5,2.2929]
[1722274374353,3.02168,3309.5,3308.5,2.2929]
[1722274374557,3.02124,3309.9,3308.5,2.2929]
[1722274375357,3.02124,3309.9,3308.5,5.31535]
[1722274375661,3.192,3310.1,3308.5,2.2929]
[1722274375864,3.02142,3309.7,3308.6,0.22929]
[1722274376100,3.02129,3309.9,3308.5,2.2929]
[1722274376260,3.02129,3309.9,3308.5,5.31539]
[1722274376756,3.02112,3310.1,3308.7,3.02231]
[1722274377388,3.02078,3310.4,3308.7,3.02232]
[1722274377596,3.02088,3310.3,3308.9,3.02209]
[1722274377776,3.02097,3310.2,3309.0,0.36329665]
[1722274378196,3.02106,3310.1,3309.0,0.06039665]
[1722274378363,0.602078,3310.4,3308.8,0.302232]
[1722274378364,3.794078,3310.4,3308.8,3.302232]
[1722274378574,3.02144,3309.7,3308.8,3.302232]
[1722274378776,3.02144,3309.7,3308.8,0.302232]
[1722274379006,3.02151,3309.6,3308.8,0.302232]
[1722274379218,3.7023708,3310.3,3308.9,0.06043816]
[1722274379436,3.02088,3310.3,3309.0,2.3156]
[1722274379720,3.0,3310.7,3309.0,2.3156]
[1722274379887,3.02097,3310.2,3309.1,0.3029]
[1722274380077,3.02061,3310.6,3309.2,0.32227991]
[1722274380275,3.02061,3310.6,3309.3,0.06042702]
[1722274380605,3.02077,3310.5,3309.3,0.06042702]
[1722274380772,6.21256,3310.7,3309.3,0.06042702]
[1722274380979,3.33955,3310.9,3309.5,3.02159]
[1722274381210,2.3977,3311.4,3309.7,2.3083]
[1722274381211,3.02023,3311.0,3309.7,2.3083]
[1722274381393,3.02049,3310.8,3309.8,0.06041454]
[1722274381595,3.0205,3310.7,3309.7,2.3083]
[1722274381905,8.60961,3311.4,3309.7,2.3083]
[1722274381906,3.02003,3311.3,3309.8,0.06041503]
[1722274382437,3.02024,3311.0,3309.8,0.06041503]
[1722274382578,3.02032,3310.9,3309.9,0.2368715]
[1722274382775,5.5897,3311.4,3310.0,0.06041488]
[1722274382776,3.02024,3311.0,3310.0,0.06041488]
[1722274382979,5.5897,3311.4,3310.0,0.06041488]
[1722274382980,3.02034,3310.9,3310.0,0.06041488]
[1722274383221,3.02034,3310.9,3309.9,0.2368715]
[1722274383222,3.0204,3310.9,3309.9,0.2368715]
[1722274383376,3.02006,3311.2,3310.0,0.06041488]
[1722274383576,3.02025,3311.0,3310.0,0.06041488]
[1722274383776,3.02032,3310.9,3310.0,0.06041488]
[1722274383979,4.183015,3311.2,3310.0,0.06041488]
[1722274383980,3.02015,3311.1,3310.0,0.06041488]
[1722274384421,3.02024,3311.0,3310.0,0.06041488]
[1722274384725,3.01949,3311.9,3310.4,0.3029]
[1722274384932,3.01949,3311.9,3310.5,0.06040263]
[1722274385236,3.01952,3311.8,3310.5,3.08109263]
[1722274385723,3.01906,3312.3,3310.7,3.0205]
[1722274385934,3.01946,3311.9,3310.8,0.06039859]
[1722274386075,3.019,3312.4,3310.8,0.06039859]
[1722274386275,3.01958,3311.8,3310.8,0.06039859]
[1722274386476,3.01938,3312.0,3310.8,0.06039859]
[1722274386887,3.01941,3311.9,3310.8,0.06039859]
[1722274388513,3.01969,3311.6,3310.8,0.36643844]
[1722274388710,3.01969,3311.6,3310.8,0.06039858]
[1722274388913,6.2111,3312.3,3310.4,3.0]
[1722274388914,3.01954,3311.8,3310.5,0.06039858]
[1722274389112,3.01954,3311.8,3310.5,3.08107858]
[1722274389319,3.0196,3311.7,3310.6,3.0]
[1722274389518,3.0196,3311.7,3310.7,0.36643862]
[1722274389684,3.0196,3311.7,3310.8,0.06039876]
[1722274389887,3.01942,3311.9,3310.8,0.06039876]
[1722274390108,3.01925,3312.1,3310.8,0.06039876]
[1722274390345,3.01905,3312.3,3310.9,2.7402]
[1722274390507,3.01915,3312.2,3311.0,0.06039471]
[1722274390703,3.01915,3312.2,3311.1,0.55180047]
[1722274391254,0.3,3312.6,3311.1,0.55180047]
[1722274391255,3.01924,3312.1,3311.1,0.55180047]
[1722274391460,3.01924,3312.1,3311.0,0.06039471]
[1722274391594,3.192,3312.4,3311.0,0.06039471]
[1722274391794,3.01962,3311.7,3311.0,0.06039806]
[1722274391992,6.21099,3312.4,3311.0,0.06039806]
[1722274391993,3.01925,3312.1,3311.0,0.06039806]
[1722274392293,3.01914,3312.2,3311.0,0.06039806]
[1722274392494,0.3,3312.6,3310.9,2.7402]
[1722274392495,3.31878,3312.6,3311.1,3.36058503]
[1722274392813,7.37,3312.9,3311.3,2.4373]
[1722274393009,14.5874,3313.5,3311.3,2.4373]
[1722274393010,3.01843,3313.0,3311.4,3.08016667]
[1722274393335,3.01825,3313.2,3311.4,0.06038667]
[1722274393336,3.01887,3312.5,3311.4,0.06038667]
[1722274393535,3.01859,3312.8,3311.5,0.24976867]
[1722274393536,3.01866,3312.8,3311.5,0.24976867]
[1722274393736,3.01866,3312.8,3311.6,0.0603821]
[1722274394047,3.01832,3313.1,3311.6,0.0603821]
[1722274394189,3.192,3313.2,3311.6,0.0603821]
[1722274394190,3.01868,3312.7,3311.6,0.0603821]
[1722274394398,3.01887,3312.5,3311.6,0.0603821]
[1722274394634,3.01877,3312.6,3311.5,0.24976867]
[1722274394837,3.01861,3312.8,3311.6,0.38536243]
[1722274395538,3.01842,3313.0,3311.6,0.38536243]
[1722274395539,3.01825,3313.2,3311.6,3.40503243]
[1722274395694,3.01856,3312.9,3311.8,0.3029]
[1722274395893,3.01856,3312.9,3311.9,0.06038116]
[1722274396637,3.192,3313.3,3311.9,0.06038116]
[1722274396638,3.01878,3312.6,3311.9,0.06038116]
[1722274396843,3.0186,3312.8,3311.9,0.06038116]
[1722274396991,3.01892,3312.5,3311.7,2.4299]
[1722274397195,0.301892,3312.5,3311.7,2.4299]
[1722274397409,3.0193,3312.1,3310.8,2.3751]
[1722274397762,3.01897,3312.4,3310.8,2.3751]
[1722274397763,3.192,3312.3,3310.8,2.3751]
[1722274397891,3.01932,3312.0,3310.8,2.3751]
[1722274398426,3.01932,3312.0,3310.9,0.06039703]
[1722274398628,3.01941,3311.9,3310.9,0.06039703]
[1722274398795,0.301941,3311.8,3310.9,0.36329703]
[1722274399140,0.301941,3311.8,3310.9,0.06039703]
[1722274399313,0.301941,3311.8,3310.9,0.06039704]
[1722274399517,3.01923,3312.1,3310.9,0.06039704]
[1722274399700,3.01923,3312.1,3310.9,0.36329704]
[1722274399903,3.01939,3312.0,3310.9,0.06039704]
[1722274400193,3.01941,3311.9,3310.8,2.3751]
[1722274400441,3.01966,3311.7,3310.8,2.3751]
[1722274400748,0.603908,3311.7,3310.8,2.3751]
[1722274400904,0.603908,3311.7,3310.9,0.06039704]
[1722274401094,3.01937,3312.0,3310.9,0.06039704]
[1722274402527,3.01937,3312.0,3310.8,2.3751]
[1722274402737,3.01941,3311.9,3310.8,2.3751]
[1722274403047,3.01941,3311.9,3310.9,0.06039705]
[1722274403192,3.01941,3311.9,3310.8,2.3751]
[1722274403398,4.65166178,3315.2,3310.8,2.3751]
[1722274403399,3.01969,3311.6,3310.9,0.53751]
[1722274403649,3.192,3312.3,3310.8,2.3751]
[1722274403650,3.01956,3311.8,3310.8,2.3751]
[1722274403994,3.192,3312.3,3310.8,2.3751]
[1722274403995,3.01984,3311.5,3310.8,2.3751]
[1722274404202,3.01996,3311.3,3310.8,2.3751]
[1722274404625,3.192,3312.2,3310.8,2.3751]
[1722274404834,3.01952,3311.8,3310.8,2.3751]
[1722274405197,3.01952,3311.8,3310.8,2.43550077]
[1722274405396,3.01976,3311.6,3310.8,2.3751]
[1722274405631,3.01952,3311.8,3310.8,2.3751]
[1722274406228,3.0196,3311.7,3310.8,2.43550088]
[1722274406443,3.623682,3311.6,3310.8,2.3751]
[1722274406639,3.01977,3311.6,3310.8,2.3751]
[1722274406798,3.01997,3311.3,3310.8,2.3751]
[1722274407001,3.02006,3311.2,3310.8,2.3751]
[1722274407405,3.02014,3311.1,3310.4,2.329]
[1722274407736,3.02024,3311.0,3310.4,2.329]
[1722274407897,0.604011,3311.1,3310.4,2.329]
[1722274408097,3.01979,3311.5,3310.4,2.329]
[1722274408657,3.01962,3311.7,3310.5,0.06040819]
[1722274408864,3.01979,3311.5,3310.5,0.06040819]
[1722274409062,3.01962,3311.7,3310.5,0.06040819]
[1722274409270,3.01971,3311.6,3310.6,0.23894082]
[1722274409557,3.01962,3311.7,3310.6,0.23894082]
[1722274409702,3.01978,3311.5,3310.6,0.23894082]
[1722274409908,3.192,3312.0,3310.6,0.23894082]
[1722274409909,3.01938,3312.0,3310.8,2.329]
[1722274410209,3.01938,3312.0,3310.9,0.60138185]
[1722274410443,3.01915,3312.2,3310.9,0.06039247]
[1722274410643,3.01932,3312.0,3310.9,0.06039247]
[1722274410909,3.01915,3312.2,3310.9,0.06039247]
[1722274411179,3.01915,3312.2,3310.9,3.08070247]
[1722274411328,3.01898,3312.4,3310.9,3.08070247]
[1722274411509,3.01911,3312.3,3311.0,0.54097025]
[1722274411710,3.01914,3312.2,3311.1,0.06039246]
[1722274411956,3.01924,3312.1,3311.1,0.06039246]
[1722274412523,3.01897,3312.4,3311.1,0.06039246]
[1722274412524,3.0191,3312.3,3311.1,0.06039246]
[1722274412692,3.01864,3312.8,3311.1,0.06039246]
[1722274412693,3.01762,3313.9,3311.6,2.4336]
[1722274412914,2.4303,3314.2,3311.9,3.01938]
[1722274412915,3.01745,3314.1,3311.9,3.01938]
[1722274413032,3.01804,3313.5,3312.0,0.06037413]
[1722274413383,3.01757,3314.0,3312.4,2.3794]
[1722274413680,4.19392281,3314.4,3312.4,2.3794]
[1722274413681,3.01748,3314.1,3312.5,1.089844]
[1722274414210,3.33741,3314.4,3312.5,1.089844]
[1722274414504,3.33741,3314.4,3312.5,0.539844]
[1722274414505,3.01761,3313.9,3312.5,0.539844]
[1722274414796,3.192,3314.2,3312.5,0.539844]
[1722274415084,3.192,3314.2,3312.4,2.3794]
[1722274415085,3.01795,3313.5,3312.4,2.3794]
[1722274415319,3.01769,3313.8,3312.4,2.6823]
[1722274415481,3.01759,3313.9,3312.4,2.3794]
[1722274415800,3.01787,3313.6,3312.4,2.3794]
[1722274416006,3.01805,3313.4,3312.5,0.23794]
[1722274416162,3.01797,3313.5,3312.5,0.23794]
[1722274416369,3.01768,3313.8,3312.6,0.060368]
[1722274416679,3.01748,3314.1,3312.6,0.060368]
[1722274416680,3.01752,3314.0,3312.6,0.060368]
[1722274416878,3.0177,3313.8,3312.7,0.3317138]
[1722274417110,0.620952,3313.9,3312.8,0.06036504]
[1722274417391,3.14541,3314.4,3312.9,2.3664]
[1722274417392,0.14541,3314.4,3312.9,2.3664]
[1722274417592,0.14541,3314.4,3313.0,0.61035193]
[1722274417896,3.01748,3314.1,3313.1,0.29767519]
[1722274418416,3.0176,3313.9,3312.9,2.3664]
[1722274418756,3.01788,3313.6,3312.9,2.3664]
[1722274418957,3.0176,3313.9,3312.9,2.3664]
[1722274419406,3.01785,3313.7,3312.9,2.3664]
[1722274419610,3.01787,3313.6,3312.9,2.3664]
[1722274419902,0.301787,3313.6,3312.5,0.23794]
[1722274420051,3.01789,3313.6,3312.5,0.23794]
[1722274420259,3.01775,3313.8,3312.5,0.23794]
[1722274420500,3.01778,3313.7,3312.6,0.06036816]
[1722274420988,3.192,3313.9,3312.5,0.23794]
[1722274421316,3.192,3313.9,3312.4,2.4557]
[1722274421317,3.192,3313.7,3312.4,2.4557]
[1722274421464,2.2694,3313.9,3312.5,0.24557]
[1722274421465,0.3192,3313.8,3312.5,0.24557]
[1722274421807,3.01787,3313.6,3312.6,0.06036815]
[1722274422189,3.01797,3313.5,3312.6,0.06036815]
[1722274422353,3.01797,3313.5,3312.5,0.24557]
[1722274422354,0.603574,3313.5,3312.5,0.24557]
[1722274422558,3.01787,3313.6,3312.5,0.24557]
[1722274422758,3.01787,3313.6,3312.6,0.06036813]
[1722274423203,3.01795,3313.5,3312.6,0.06036813]
[1722274423705,3.01805,3313.4,3312.5,0.24557]
[1722274423934,3.01798,3313.5,3312.5,0.24557]
[1722274424239,3.01832,3313.1,3312.4,2.4557]
[1722274424527,3.01845,3313.0,3312.4,2.4557]
[1722274424740,0.333706,3313.6,3312.4,2.4557]
[1722274424741,3.01814,3313.3,3312.4,2.4557]
[1722274424979,0.333706,3313.6,3312.4,2.4557]
[1722274424980,3.01837,3313.1,3312.4,2.4557]
[1722274425090,3.01806,3313.4,3312.4,2.7586]
[1722274425291,3.01806,3313.4,3312.4,2.4557]
[1722274426035,3.351576,3313.6,3312.4,2.4557]
[1722274426240,3.01796,3313.5,3312.5,0.06037141]
[1722274426539,3.33689,3313.8,3312.5,0.06037141]
[1722274426767,3.01787,3313.6,3312.5,0.06037141]
[1722274426885,5.2694,3314.2,3312.5,0.06037141]
[1722274427091,3.01768,3313.8,3312.5,0.06037141]
[1722274427394,3.01768,3313.8,3312.5,0.36327141]
[1722274427708,3.01768,3313.8,3312.7,0.3029]
[1722274427932,3.01757,3314.0,3312.8,0.06036229]
[1722274428318,3.14541,3314.4,3312.9,2.5939]
[1722274428503,0.14541,3314.4,3313.0,0.06035699]
[1722274429222,3.16254,3314.4,3313.0,3.07876699]
[1722274429416,3.16254,3314.4,3313.1,0.5672667]
[1722274429417,0.14541,3314.4,3313.1,0.5672667]
[1722274429618,0.14541,3314.4,3313.2,5.91951586]
[1722274429830,0.14541,3314.4,3313.3,0.06034403]
[1722274430004,0.14541,3314.4,3313.4,3.01804]
[1722274430212,0.14541,3314.4,3313.6,2.3464]
[1722274430426,0.14541,3314.4,3313.7,0.06034457]
[1722274430597,0.14541,3314.4,3313.6,2.3464]
[1722274430825,0.14541,3314.4,3313.8,0.3029]
[1722274430988,0.14541,3314.4,3313.6,2.3464]
[1722274431189,0.14541,3314.4,3313.7,0.56362384]
[1722274431410,0.14541,3314.4,3313.6,2.3464]
[1722274431671,3.16255,3314.4,3313.6,2.3464]
[1722274431812,0.14541,3314.4,3313.6,2.3464]
[1722274432005,3.16263,3314.4,3313.6,2.3464]
[1722274432352,3.01729,3314.3,3313.6,2.3464]
[1722274432530,0.31627,3314.2,3313.6,2.3464]
[1722274432853,0.14541,3314.4,3313.6,2.3464]
[1722274433825,0.14541,3314.4,3313.7,0.06034894]
[1722274434010,0.14541,3314.4,3313.6,2.3464]
[1722274434635,0.14541,3314.4,3313.7,0.06034272]
[1722274434858,0.14541,3314.4,3313.8,0.57275027]
[1722274435084,0.14541,3314.4,3313.9,0.06034272]
[1722274435722,0.14541,3314.4,3313.7,0.06034272]
[1722274436946,0.14541,3314.4,3313.6,2.3464]
[1722274437452,0.14541,3314.4,3313.7,3.32066]
[1722274437605,0.14541,3314.4,3313.8,0.06034286]
[1722274437809,0.14541,3314.4,3313.9,0.64100029]
[1722274438066,0.14541,3314.4,3314.0,0.06034058]
[1722274438931,0.14541,3314.4,3313.7,3.0]
[1722274438932,0.14541,3314.4,3313.8,0.06034221]
[1722274439316,0.14541,3314.4,3314.1,2.2844]
[1722274439515,0.14541,3314.4,3314.2,0.0603352]
[1722274439712,0.14541,3314.4,3314.3,0.23447352]
[1722274439922,0.14541,3314.4,3314.3,0.29480872]
[1722274441311,0.14541,3314.4,3314.3,3.31202872]
[1722274441517,0.14541,3314.4,3314.3,0.29480872]
[1722274441713,0.14541,3314.4,3314.3,0.23447352]
[1722274442516,0.14541,3314.4,3314.1,2.2844]
[1722274444661,0.14541,3314.4,3314.2,0.06033372]
[1722274444864,0.14541,3314.4,3314.1,2.2844]
[1722274445456,0.14541,3314.4,3314.0,0.06034067]
[1722274445848,0.14541,3314.4,3313.6,5.3884]
[1722274446064,0.14541,3314.4,3313.7,0.53884]
[1722274446392,0.14541,3314.4,3313.8,0.060343]
[1722274446520,0.14541,3314.4,3313.6,5.3884]
[1722274446922,0.14541,3314.4,3313.6,2.3884]
[1722274447464,0.14541,3314.4,3313.7,0.06034812]
[1722274447625,0.14541,3314.4,3313.6,2.3884]
[1722274447823,0.14541,3314.4,3312.9,2.4312]
[1722274447824,3.01723,3314.3,3312.9,2.4312]
[1722274448137,0.14541,3314.4,3313.0,3.01834]
[1722274448347,0.14541,3314.4,3313.2,3.01822]
[1722274448597,0.14541,3314.4,3313.5,3.01789]
[1722274448907,0.14541,3314.4,3313.7,3.01769]
[1722274449182,0.14541,3314.4,3313.8,3.924429]
[1722274449470,0.14541,3314.4,3313.9,3.3029]
[1722274449636,0.14541,3314.4,3313.9,6.32049]
[1722274450238,0.14541,3314.4,3314.0,0.06033454]
[1722274450439,0.14541,3314.4,3313.9,3.3029]
[1722274450738,0.14541,3314.4,3314.0,0.7227339]
[1722274451396,0.14541,3314.4,3314.1,0.06033508]
[1722274452282,0.14541,3314.4,3314.3,6.03444]
[1722274452461,0.07234837,3314.4,3314.3,9.58444]
[1722274452631,0.03607021,3314.4,3314.3,9.58444]
[1722274452974,0.03607021,3314.4,3314.3,7.773684]
[1722274453270,0.03607021,3314.4,3314.3,4.206464]
[1722274453474,0.03607021,3314.4,3314.2,2.4802]
[1722274453686,0.03607021,3314.4,3314.1,3.0]
[1722274453823,0.03607021,3314.4,3313.9,0.3029]
[1722274454045,0.03607021,3314.4,3314.0,0.06034296]
[1722274454793,0.03607021,3314.4,3313.3,5.026]
[1722274454794,0.03607021,3314.4,3313.7,3.07809222]
[1722274455003,0.03607021,3314.4,3313.8,3.38576145]
[1722274455206,0.03607021,3314.4,3314.0,3.01747]
[1722274455369,0.03607021,3314.4,3314.1,0.06033547]
[1722274455881,0.03607021,3314.4,3314.0,3.01747]
[1722274455882,0.03607021,3314.4,3314.0,3.01743]
[1722274456082,0.03607021,3314.4,3314.1,0.55]
[1722274456412,0.03607021,3314.4,3314.2,0.41707544]
[1722274456565,0.03607021,3314.4,3314.2,0.356743]
[1722274456765,0.03607021,3314.4,3313.9,0.3029]
[1722274456953,0.03607021,3314.4,3314.0,3.07782843]
[1722274457303,0.03607021,3314.4,3313.9,0.3029]
[1722274457463,0.03607021,3314.4,3313.9,3.3029]
[1722274458313,0.03607021,3314.4,3313.9,3.32048]
[1722274458466,0.03607021,3314.4,3314.0,0.36282892]
[1722274459021,0.03607021,3314.4,3313.9,0.3029]
[1722274459172,0.03607021,3314.4,3313.9,3.32042]
[1722274460182,0.03607021,3314.4,3313.9,0.3029]
[1722274460792,0.03607021,3314.4,3313.8,3.30780922]
[1722274460962,0.03607021,3314.4,3313.7,0.3029]
[1722274461550,0.03607021,3314.4,3313.5,0.3029]
[1722274462187,0.03607021,3314.4,3313.7,0.3029]
[1722274462390,0.03607021,3314.4,3313.8,0.06034394]
[1722274463855,0.03607021,3314.4,3313.6,0.06034398]
[1722274464064,0.03607021,3314.4,3313.0,3.0184]
[1722274464389,0.03607021,3314.4,3313.1,6.87121]
[1722274464697,2.3873,3314.3,3313.1,3.0]
[1722274464903,3.01732,3314.2,3312.8,2.3382]
[1722274465200,3.01732,3314.2,3312.2,0.94633377]
[1722274465201,0.03607021,3314.4,3313.3,2.9849]
[1722274465414,0.03607021,3314.4,3313.9,3.32046]
[1722274465632,0.03607021,3314.4,3314.0,0.06033924]
[1722274465836,0.03607021,3314.4,3314.2,2.3977]
[1722274465960,0.03607021,3314.4,3314.3,6.09476995]
[1722274466306,0.03607021,3314.4,3314.3,10.21221695]
[1722274466490,0.03607021,3314.4,3314.3,10.76221695]
[1722274468002,0.03607021,3314.4,3314.3,7.74499695]
[1722274468320,0.03607021,3314.4,3314.3,4.117447]
[1722274468471,0.03607021,3314.4,3314.3,1.117447]
[1722274468794,0.03607021,3314.4,3314.2,3.01731]
[1722274469003,0.03607021,3314.4,3314.3,3.0]
[1722274469765,0.03607021,3314.4,3314.0,3.3029]
[1722274470280,0.03607021,3314.4,3314.2,3.01731]
[1722274470482,0.03607021,3314.4,3314.3,6.07755406]
[1722274470772,0.03607021,3314.4,3314.3,3.60775541]
[1722274470933,0.03607021,3314.4,3314.3,3.0]
[1722274471151,0.03607021,3314.4,3314.1,6.01735]
[1722274471561,0.03607021,3314.4,3314.2,3.01731]
[1722274471771,0.03607021,3314.4,3314.3,3.0]
[1722274472279,0.03607021,3314.4,3314.3,6.01722]
[1722274472477,0.03607021,3314.4,3314.3,3.601722]
[1722274472619,0.03607021,3314.4,3314.0,3.0]
[1722274472857,0.03607021,3314.4,3313.6,3.01784]
[1722274473064,0.03607021,3314.4,3313.7,0.55]
[1722274473609,0.03607021,3314.4,3313.8,3.01768]
[1722274473798,0.03607021,3314.4,3314.0,0.3029]
[1722274473957,0.03607021,3314.4,3314.1,0.06033941]
[1722274474564,0.03607021,3314.4,3314.2,3.01727]
[1722274474880,0.03607021,3314.4,3314.1,3.0174]
[1722274475299,0.03607021,3314.4,3314.0,3.32039]
[1722274475607,0.03607021,3314.4,3314.1,0.332039]
[1722274475809,0.03607021,3314.4,3314.0,3.0]
[1722274475951,0.03607021,3314.4,3314.0,3.01748]
[1722274476155,0.03607021,3314.4,3313.9,3.01751]
[1722274476385,0.03607021,3314.4,3314.0,6.01746]
[1722274476806,0.03607021,3314.4,3314.1,2.4047]
[1722274476974,0.03607021,3314.4,3314.2,5.30604995]
[1722274477174,0.03607021,3314.4,3314.3,12.6619914]
[1722274477380,0.03607021,3314.4,3314.3,15.28613]
[1722274477686,0.03607021,3314.4,3314.3,14.52150813]
[1722274477914,0.03607021,3314.4,3314.3,12.94702497]
[1722274478210,0.03607021,3314.4,3314.3,11.50428064]
[1722274478370,0.03607021,3314.4,3314.3,8.33014953]
[1722274478880,0.03607021,3314.4,3314.1,0.3029]
[1722274479409,0.03607021,3314.4,3314.0,3.0]
[1722274479713,0.03607021,3314.4,3313.5,3.01789]
[1722274479860,0.03607021,3314.4,3313.6,3.0178]
[1722274480060,0.03607021,3314.4,3313.7,0.3029]
[1722274480799,2.74691202,3314.3,3313.7,0.3029]
[1722274481004,2.4416,3314.3,3313.1,0.3029]
[1722274481189,5.45883,3314.3,3313.1,0.3029]
[1722274481563,3.01752,3314.0,3313.1,0.3029]
[1722274481755,3.01752,3314.0,3312.7,0.3029]
[1722274482007,0.301752,3313.9,3312.7,0.903274]
[1722274482210,3.01734,3314.2,3312.8,0.3029]
[1722274482381,3.01734,3314.2,3312.8,3.32148]
[1722274483404,2.4416,3314.3,3312.8,3.32148]
[1722274483712,5.45883,3314.3,3313.0,0.3029]
[1722274484003,2.4416,3314.3,3313.1,0.06035274]
[1722274484230,2.4416,3314.3,3313.2,0.3029]
[1722274484231,3.29279502,3314.3,3313.2,0.3029]
[1722274484504,3.29279502,3314.3,3313.3,0.06035274]
[1722274484673,0.33288652,3314.2,3313.3,0.06035274]
[1722274486164,0.33288652,3314.2,3313.1,0.3045258]
[1722274486426,0.33288652,3314.2,3312.9,2.9849]
[1722274486427,3.01751,3314.0,3312.9,2.9849]
[1722274486923,3.01751,3314.0,3312.9,0.3029]
[1722274487410,3.01751,3314.0,3312.7,0.3029]
[1722274487411,3.01777,3313.7,3312.7,0.3029]
[1722274487579,3.01786,3313.6,3312.7,0.3029]
[1722274487928,3.319646,3313.6,3312.7,0.3029]
[1722274488155,0.301786,3313.6,3312.7,0.3029]
[1722274488283,0.301786,3313.6,3312.1,2.682]
[1722274488284,2.4347,3313.5,3312.1,0.3029]
[1722274488483,5.45266,3313.5,3312.1,0.3029]
[1722274489315,5.45266,3313.5,3312.1,2.9849]
[1722274489316,3.01804,3313.4,3312.1,2.9849]
[1722274489681,3.01815,3313.3,3312.1,2.9849]
[1722274490028,3.01806,3313.4,3312.1,2.9849]
[1722274490188,3.563336,3313.4,3312.2,3.903321]
[1722274491097,3.01814,3313.3,3312.2,3.903321]
[1722274491298,3.0183,3313.2,3312.2,3.903321]
[1722274491709,3.0183,3313.2,3312.2,0.903321]
[1722274491920,3.0183,3313.2,3312.3,3.0]
[1722274492116,3.0183,3313.2,3312.0,0.3029]
[1722274492326,3.0185,3312.9,3312.0,0.3029]
[1722274492526,3.01841,3313.0,3312.0,0.3029]
[1722274492704,0.301841,3312.9,3312.0,0.3029]
[1722274492920,0.301841,3312.9,3311.8,0.3029]
[1722274493392,3.01859,3312.8,3311.8,0.3029]
[1722274493844,3.01859,3312.8,3311.8,3.3029]
[1722274494022,5.34028,3312.7,3311.4,0.3029]
[1722274494235,2.3216,3312.7,3311.5,0.60139]
[1722274494444,3.01894,3312.5,3310.9,5.70231]
[1722274494647,3.01894,3312.5,3310.5,3.02069]
[1722274494648,3.192,3312.5,3310.5,3.02069]
[1722274494847,3.192,3312.5,3310.4,2.682]
[1722274494848,3.01923,3312.1,3310.6,0.570269]
[1722274495150,3.01923,3312.1,3310.8,0.3029]
[1722274495599,3.01933,3312.0,3310.8,0.3029]
[1722274496355,3.01933,3312.0,3310.9,0.06039628]
[1722274496559,3.01951,3311.8,3310.9,0.06039628]
[1722274496856,5.47201,3311.8,3310.5,3.3029]
[1722274497020,5.47201,3311.8,3310.7,0.3029]
[1722274497229,3.01969,3311.6,3310.7,0.3029]
[1722274497450,3.01969,3311.6,3310.5,0.3029]
[1722274498148,5.47206,3311.8,3310.6,0.06039995]
[1722274499060,2.4525,3311.8,3310.6,0.06039995]
[1722274499259,3.01978,3311.5,3310.6,0.66492995]
[1722274499480,3.01993,3311.4,3310.1,0.3029]
[1722274499786,3.01996,3311.3,3310.1,0.3029]
[1722274499937,2.4525,3311.8,3310.1,0.3029]
[1722274499938,5.6445,3311.8,3310.1,0.3029]
[1722274500140,2.4491,3310.9,3310.1,0.3029]
[1722274500365,2.4491,3310.9,3309.3,0.3029]
[1722274500567,2.4491,3310.9,3309.1,2.3082]
[1722274500568,3.02078,3310.4,3309.4,0.60139]
[1722274500766,3.02051,3310.7,3309.4,0.3029]
[1722274500984,3.26533,3310.8,3309.5,0.06042304]
[1722274501192,3.02051,3310.7,3309.5,0.06042304]
[1722274501410,2.4491,3310.9,3309.7,2.682]
[1722274501715,2.4491,3310.9,3309.3,5.70372]
[1722274501885,3.567356,3310.8,3309.4,0.570372]
[1722274502080,3.02051,3310.7,3309.1,2.3082]
[1722274502592,3.02051,3310.7,3308.7,3.0223]
[1722274502593,3.02087,3310.3,3308.7,3.0223]
[1722274502774,3.02087,3310.3,3307.7,1.5]
[1722274502775,3.02139,3309.8,3308.3,3.02267]
[1722274502984,3.02139,3309.8,3308.1,7.98266]
[1722274502985,8.44851,3310.6,3308.8,3.02224]
[1722274503160,8.44851,3310.6,3308.9,0.06043171]
[1722274503161,5.44851,3310.6,3308.9,0.06043171]
[1722274503356,3.02079,3310.4,3309.0,3.02202]
[1722274503556,3.02079,3310.4,3308.8,3.02223]
[1722274503875,3.02075,3310.5,3309.1,3.02188]
[1722274504076,3.02075,3310.5,3309.2,0.0604262]
[1722274504387,5.44858,3310.6,3309.2,0.0604262]
[1722274504574,2.4279,3310.6,3309.2,0.0604262]
[1722274504888,3.02116,3310.0,3309.0,0.3029]
[1722274505082,3.02116,3310.0,3308.6,0.3029]
[1722274505251,3.43479,3310.5,3308.6,0.3029]
[1722274505252,2.3217,3309.7,3308.6,0.3029]
[1722274505450,0.23217,3309.6,3308.6,0.3029]
[1722274505662,5.34312,3309.7,3308.6,0.3029]
[1722274505890,3.02151,3309.6,3308.6,0.3029]
[1722274506091,3.02151,3309.6,3308.1,5.30068]
[1722274506092,3.02151,3309.6,3308.2,3.32568]
[1722274506263,2.3217,3309.7,3308.4,0.3029]
[1722274506465,5.34312,3309.7,3308.4,0.3029]